Cogmind - Beta 14 @@@ ROGUE MODE // 2024.09.01 @ 07:29:20 Player: MOPO3 Result: Self-destructed Performance ------------- Evolutions (2) 1000 Regions Visited (4) 800 Robots Destroyed (50) 250 Value Destroyed (1391) 1391 Prototype IDs (3) 60 Alien Tech Used (0) 0 Bonus (0) 0 TOTAL SCORE: 3501 Bonus ------- None Cogmind --------- Core Integrity 477/550 Matter 255/300 Energy 18/280 System Corruption 0% Temperature Hot (217) Movement Treading (243) Ox1 Location -8/Materials Parts ------- > --- POWER (1) -------- Heavy Ion Engine > --- PROPULSION (4) --- Improved Treads Improved Treads Armored Treads > --- UTILITY (4) ------ Huge Storage Unit Hardened Medium Armor Plating Shield Generator Hacking Suite > --- WEAPON (2) ------- Light EM Pulse Cannon Assault Cannon > --- INVENTORY (25) --- Light Deuterium Engine Light Deuterium Engine Light Deuterium Engine Light Nuclear Core Light Treads Light Treads Light Treads Light Treads Light Treads Large Matter Pod (150) Light Armor Plating Hardened Light Armor Plating Shield Generator Hacking Suite EM Shotgun EM Shotgun EM Shotgun Light EM Pulse Cannon Enhanced Autogun Enhanced Autogun Assault Cannon Assault Cannon Heavy Flail Peak State ------------ > --- POWER ------------ Heavy Ion Engine > --- PROPULSION ------- Improved Treads Improved Treads Improved Treads Armored Treads > --- UTILITY ---------- Huge Storage Unit Hardened Medium Armor Plating Shield Generator Hacking Suite > --- WEAPON ----------- EM Shotgun Enhanced Autogun > --- INVENTORY -------- Ion Engine Light Ion Engine Light Ion Engine Light Treads Light Treads Light Treads Light Treads Light Treads Improved Treads Large Matter Pod Hardened Light Armor Plating Shield Generator Shield Generator Shield Generator Hacking Suite EM Shotgun EM Shotgun EM Shotgun Light EM Pulse Cannon Light EM Pulse Cannon Enhanced Autogun Enhanced Autogun Enhanced Autogun Assault Cannon Katana [Rating: 32] Favorites ----------- Power Heavy Ion Engine Engine Heavy Ion Engine Power Core Light Nuclear Core Propulsion Improved Treads Treads Improved Treads Utility Huge Storage Unit Device Shield Generator Storage Huge Storage Unit Hackware Hacking Suite Protection Weapon Shielding Weapon EM Shotgun Energy Gun EM Shotgun Energy Cannon Light EM Pulse Cannon Ballistic Gun Assault Rifle Ballistic Cannon Assault Cannon Special Weapon Mining Laser Build | -11 -10 -9 -9 -8 ------- Run | Yrd Mat Mat Min Mat Slots Evolved 4 | . . 2 . 2 Power . | . . . . . Propulsion 2 | . . 1 . 1 Utility 2 | . . 1 . 1 Weapon . | . . . . . Parts Attached 41 | 7 9 11 2 12 Power 6 | 1 3 2 . . Engine 5 | 1 2 2 . . Core 1 | . 1 . . . Reactor . | . . . . . Propulsion 8 | 2 . 3 . 3 Treads 8 | 2 . 3 . 3 Leg . | . . . . . Wheel . | . . . . . Hover . | . . . . . Flight . | . . . . . Utility 13 | 1 3 4 1 4 Device 2 | . . . . 2 Storage 2 | 1 1 . . . Processor . | . . . . . Hackware 1 | . . 1 . . Protection 8 | . 2 3 1 2 Artifact . | . . . . . Weapon 14 | 3 3 2 1 5 Energy Gun 4 | 1 . 1 1 1 Energy Cannon 1 | . . . . 1 Ballistic Gun 7 | 2 2 1 . 2 Ballistic Cannon 1 | . . . . 1 Launcher . | . . . . . Special Weapon 1 | . 1 . . . Impact Weapon . | . . . . . Slashing Weapon . | . . . . . Piercing Weapon . | . . . . . Special Melee Weapon . | . . . . . Unidentified Prototypes 3 | . . 1 . 2 Parts Lost 14 | . 4 3 2 5 Power 3 | . 2 1 . . Propulsion 2 | . . . . 2 Utility 4 | . 1 1 1 1 Weapon 5 | . 1 1 1 2 Highest Loss Streak 2 | . 2 1 2 2 To Critical Strikes . | . . . . . Average Slot Usage (%) 99 | . 99 99 100 99 Engine 9 | . 13 3 11 9 Core 1 | . . 7 . . Treads 31 | . 28 33 33 35 Device 1 | . . . . 6 Storage 11 | . 14 11 11 9 Hackware 6 | . . 10 11 9 Protection 12 | . 13 10 11 11 Energy Gun 9 | . 10 10 11 7 Ballistic Gun 11 | . 14 11 11 6 Special Weapon 1 | . 2 . . . Peak Build Rating 32 | 6 13 22 21 32 Average Rating 17 | 4 8 20 20 29 On Entrance 12 | . 6 13 21 21 Naked Turns . | . . . . . Heaviest Build 106 | 12 92 98 97 106 Greatest Support 89 | 40 40 69 69 89 Greatest Overweight (x) 2 | . 2 1 1 1 Average Overweight (x) 1 | . 1 1 1 1 Largest Inventory Capacity 25 | 8 25 25 25 25 Average Capacity 24 | 6 24 25 25 25 Most Carried 25 | 2 22 25 25 25 Average Carried 17 | 1 9 22 23 24 Final Capacity 25 | 8 25 25 25 25 Final Carried 25 | 2 21 25 24 23 Class Distribution -------------------- 100% | Mutant Dominant Class ---------------- Mutant | -10/Materials Mutant | -9/Materials Mutant | -9/Mines Mutant | -8/Materials Resources | -11 -10 -9 -9 -8 ----------- Run | Yrd Mat Mat Min Mat Matter Collected 1237 | 236 358 264 88 291 Remotely . | . . . . . Salvage Created 1945 | . 481 653 334 477 Parts 113 | . 34 33 16 30 Haulers Intercepted 6 | . 2 2 . 2 Recyclers Shooed 1 | . . 1 . . Parts Field Recycled . | . . . . . Retrieved Matter . | . . . . . Parts Self-Destructed . | . . . . . Prevented . | . . . . . Kills | -11 -10 -9 -9 -8 ------- Run | Yrd Mat Mat Min Mat Combat Hostiles Destroyed 34 | . 9 10 8 7 Guns 29 | . 6 9 8 6 Cannons 3 | . 2 . . 1 AOE 2 | . 1 1 . . Classes Destroyed 10 | . 5 3 2 . Worker 3 | . 1 1 . 1 Builder 4 | . . 1 . 3 Hauler 6 | . 2 2 . 2 Recycler 1 | . . . 1 . Operator 1 | . 1 . . . Watcher 1 | . 1 . . . Swarmer 3 | . . . 3 . Grunt 25 | . 9 5 5 6 Duelist 1 | . . 1 . . Sentry 5 | . . 4 . 1 Best Kill Streak 5 | . 4 3 5 5 Combat Bots Only 5 | . 3 3 5 2 Max Kills in Single Turn 2 | . 2 1 1 2 Gunslinging . | . . . . . Exploded 1 | . 1 1 . . Melee . | . . . . . Uniques/NPCs Destroyed . | . . . . . Combat | -11 -10 -9 -9 -8 -------- Run | Yrd Mat Mat Min Mat Hostile Shots Fired 216 | . 51 57 41 67 Missed 61 | . 14 22 12 13 Damage Taken 2237 | . 589 611 331 706 Core 380 | . 75 183 49 73 Absorbed by Shields 216 | . . . . 216 Redirected to Shielding 99 | . 75 10 14 . Core Remaining (%) 70 | 100 70 . 42 . Volleys Fired 154 | . 39 38 26 51 Largest 2 | . 2 2 2 2 Hottest 123 | . 123 68 68 100 Shots Fired 291 | . 75 76 52 88 Gun 263 | . 67 76 52 68 Cannon 20 | . . . . 20 Launcher . | . . . . . Special 8 | . 8 . . . Kinetic 161 | . 45 38 26 52 Thermal 8 | . 8 . . . Explosive . | . . . . . Electromagnetic 122 | . 22 38 26 36 Robot Hit Streak 28 | . 17 28 28 15 Robot Miss Streak 8 | . 4 1 8 4 Penetration Max . | . . . . . Secondary Targets 1 | . . . 1 . Max Gunslinging Chain 1 | . . . 1 . Shots Hit Robots 219 | . 53 65 36 65 Core Hits 101 | . 25 29 18 29 Critical Kills . | . . . . . Critical Parts Destroyed . | . . . . . Critical Strikes 2 | . . 1 . 1 Destroy 1 | . . 1 . . Blast 1 | . . . . 1 Melee Attacks . | . . . . . Impact . | . . . . . Slashing . | . . . . . Piercing . | . . . . . Sneak Attacks . | . . . . . Combat Hostiles . | . . . . . Follow-up Attacks . | . . . . . Damage Inflicted 3793 | . 732 1065 536 1460 Guns 2946 | . 616 926 509 895 Cannons 277 | . . . . 277 Explosions 474 | . 20 139 27 288 Melee . | . . . . . Ramming . | . . . . . Kinetic 1663 | . 384 396 218 665 Thermal 570 | . 116 139 27 288 Explosive . | . . . . . Electromagnetic 1560 | . 232 530 291 507 Impact . | . . . . . Slashing . | . . . . . Piercing . | . . . . . Highest Corruption 1 | . 1 . . . Average Corruption 1 | . 1 . . . Corruption Purged . | . . . . . Corruption Blocked . | . . . . . Overload Shots . | . . . . . Overflow Damage 60 | . . 20 . 40 Projectiles . | . . . . . Explosions 60 | . . 20 . 40 Melee . | . . . . . Knockbacks 5 | . . . . 5 Impact . | . . . . . Kinetic 4 | . . . . 4 Secondary 1 | . . . . 1 Self-Inflicted Damage 241 | . 39 60 35 107 Shots 6 | . 1 2 1 2 Rammed . | . . . . . Targets Rammed . | . . . . . Kicked . | . . . . . Crushed . | . . . . . Highest Temperature 314 | . 118 193 60 314 Average Temperature 65 | . 29 54 21 107 Received Heat Transfer 934 | . 282 177 117 358 Effects 2 | . . . . 2 Interference 2 | . . . . 2 Siege Activations . | . . . . . Robots Corrupted . | . . . . . Combat Hostiles . | . . . . . Parts Fried 4 | . 1 1 . 2 Impact Corruptions . | . . . . . Robots Melted . | . . . . . Combat Hostiles . | . . . . . Parts Melted . | . . . . . Heat Transferred 800 | . 200 200 50 350 Parts Sabotaged . | . . . . . Parts Stolen . | . . . . . Parts Stripped . | . . . . . Power Chain Reactions 8 | . 1 2 1 4 Alert | -11 -10 -9 -9 -8 ------- Run | Yrd Mat Mat Min Mat Peak Influence 276 | . 101 230 276 163 Initial 50 | . . 42 50 . Average 57 | . 30 115 90 31 Maximum Alert Level 1 | . . 1 1 . Low Security (%) 96 | 100 100 92 86 100 Level 1 3 | . . 7 13 . Level 2 . | . . . . . Level 3 . | . . . . . Level 4 . | . . . . . Level 5 . | . . . . . High Security . | . . . . . Max Security . | . . . . . Squads Dispatched 16 | . 3 3 . 10 Investigation 5 | . 1 1 . 3 Extermination . | . . . . . Reinforcement 11 | . 2 2 . 7 Assault . | . . . . . Garrison . | . . . . . Intercept . | . . . . . Searches Triggered . | . . . . . Construction Impeded 1 | . . . . 1 Haulers Reinforced . | . . . . . Active Scanning Responses . | . . . . . Cargo Convoy Interrupts . | . . . . . Stealth | -11 -10 -9 -9 -8 --------- Run | Yrd Mat Mat Min Mat Distress Signals 5 | . 2 2 . 1 Communications Jammed . | . . . . . Distress Signals . | . . . . . Times Spotted 62 | . 17 16 12 17 Peak Tracking Total 7 | . 5 3 7 4 Tactical Retreats 6 | . 1 2 3 . Traps | -11 -10 -9 -9 -8 ------- Run | Yrd Mat Mat Min Mat Traps Triggered 1 | . 1 . . . Indirectly . | . . . . . Trap Hack Attempts . | . . . . . Triggered . | . . . . . Disarmed . | . . . . . Reprogrammed . | . . . . . Reused . | . . . . . Traps Extracted . | . . . . . Installed . | . . . . . Triggered . | . . . . . Machines | -11 -10 -9 -9 -8 ---------- Run | Yrd Mat Mat Min Mat Machines Disabled 1 | . . . . 1 Max in Single Turn 1 | . . . . 1 Machines Repaired . | . . . . . Machines Dismantled . | . . . . . Machines Sabotaged . | . . . . . Overloaded Fab Kills . | . . . . . Hacking | -11 -10 -9 -9 -8 --------- Run | Yrd Mat Mat Min Mat Machines Accessed 12 | . 2 4 . 6 Terminals 6 | . 1 2 . 3 Fabricators . | . . . . . Repair Stations 1 | . . . . 1 Recycling Units 4 | . 1 2 . 1 Scanalyzers 1 | . . . . 1 Garrison Access . | . . . . . Total Hacks 37 | . 6 9 . 22 Successful 16 | . 1 6 . 9 Failed 21 | . 5 3 . 13 Catastrophic 5 | . 3 . . 2 Database Lockouts . | . . . . . Manual 22 | . 4 7 . 11 Terminals 25 | . 4 5 . 16 Fabricators . | . . . . . Repair Stations 3 | . . . . 3 Recycling Units 8 | . 2 4 . 2 Scanalyzers 1 | . . . . 1 Garrison Access . | . . . . . Terminal Hacks 5 | . . 2 . 3 Branch Access Points 2 | . . 1 . 1 Unreport Threat 2 | . . 1 . 1 Dispatch Records 1 | . . . . 1 Fabricator Hacks . | . . . . . Repair Station Hacks 1 | . . . . 1 Scan Component 1 | . . . . 1 Recycling Unit Hacks 4 | . . 3 . 1 Retrieve Components 4 | . . 3 . 1 Scanalyzer . | . . . . . Garrison Access Hacks . | . . . . . Unauthorized Hacks 6 | . 1 1 . 4 Terminals 5 | . 1 1 . 3 Botnet 5 | . 1 1 . 3 Fabricators . | . . . . . Repair Stations . | . . . . . Recycling Units . | . . . . . Scanalyzers 1 | . . . . 1 Extract 1 | . . . . 1 Garrison Access . | . . . . . Data Cores Recovered . | . . . . . Used . | . . . . . Hacking Detections 10 | . 2 3 . 5 Full Trace Events 4 | . 2 1 . 1 Feedback Events . | . . . . . Feedback Blocked . | . . . . . Robot Schematics Acquired . | . . . . . Robots Built . | . . . . . Authchips . | . . . . . Time . | . . . . . Total Robot Build Rating . | . . . . . Part Schematics Acquired 7 | . . . . 7 Parts Built . | . . . . . Authchips . | . . . . . Time . | . . . . . Total Part Build Rating . | . . . . . Parts Repaired . | . . . . . Time . | . . . . . Parts Recycled . | . . . . . Recycled Matter . | . . . . . Retrieved Matter . | . . . . . Retrieved Components 11 | . . 10 . 1 Parts Scanalyzed . | . . . . . Part Schematics Acquired . | . . . . . Parts Damaged . | . . . . . Bothacking | -11 -10 -9 -9 -8 ------------ Run | Yrd Mat Mat Min Mat Used RIF Installer . | . . . . . Robots Hacked . | . . . . . Non-combat . | . . . . . Combat . | . . . . . Robot Hacks Applied . | . . . . . Relay Couplers Released . | . . . . . Fabnet Peak Effective % . | . . . . . Robots Rewired . | . . . . . Allies Hacked . | . . . . . Hacks Repelled . | . . . . . Allies | -11 -10 -9 -9 -8 -------- Run | Yrd Mat Mat Min Mat Total Allies . | . . . . . Largest Group . | . . . . . Highest-Rated Group . | . . . . . Highest-Rated Ally . | . . . . . Total Orders . | . . . . . Ally Attacks . | . . . . . Total Damage . | . . . . . Kills . | . . . . . Allies Corrupted . | . . . . . Allies Melted . | . . . . . Intel | -11 -10 -9 -9 -8 ------- Run | Yrd Mat Mat Min Mat Robot Analysis Total . | . . . . . Derelict Logs Recovered 2 | . . . 2 . Drone Launches . | . . . . . Drone Recoveries . | . . . . . Exploration | -11 -10 -9 -9 -8 ------------- Run | Yrd Mat Mat Min Mat Turns Passed 4690 | 89 1847 866 903 985 Spaces Moved 1501 | 51 515 268 338 329 Core 4 | 4 . . . . Treads 1497 | 47 515 268 338 329 Legs . | . . . . . Wheels . | . . . . . Hover . | . . . . . Flight . | . . . . . Fastest Speed 50 | 50 160 240 240 240 Average Speed 263 | 151 315 240 240 241 Slowest Speed 320 | 160 320 240 240 243 Overloaded Moves . | . . . . . Propulsion Burnouts . | . . . . . Robots Hopped . | . . . . . Cave-ins Triggered . | . . . . . Exploration Rate (%) 37 | 4 61 27 62 32 Regions Visited 4 Branch Regions 1 Pre-discovered Areas 1 | . . . 1 . Known Exits Taken 1 | . . 1 . . Unknown Exits Taken 3 | 1 1 . 1 . Scrap Searched 2 | . . . 2 . Spaces Dug 3 | . 3 . . . Terrain Destroyed 40 | . 9 4 6 21 Melee . | . . . . . Projectile 8 | . 4 . . 4 AOE 32 | . 5 4 6 17 Terrain Rammed . | . . . . . Walls Destroyed . | . . . . . Machines Disabled . | . . . . . Actions | -11 -10 -9 -9 -8 --------- Run | Yrd Mat Mat Min Mat Total 1959 | 59 652 422 379 447 Wait 175 | . 60 87 13 15 Move 1497 | 50 514 267 337 329 Hop . | . . . . . Pick Up 63 | 2 25 14 1 21 Fast Attach 10 | 6 2 . . 2 Attach 16 | . 4 5 2 5 Detach . | . . . . . Swap 16 | 1 3 6 . 6 Drop 28 | . 5 5 . 18 Fire 154 | . 39 38 26 51 Melee . | . . . . . Ram . | . . . . . Kick . | . . . . . Crush . | . . . . . Escape Stasis . | . . . . . Rewire . | . . . . . Trap . | . . . . . Miscellaneous . | . . . . . Route ------- -11/Scrapyard -10/Materials (discovered 2 exits: *Mat / [*Min]) -9/Materials -9/Mines -8/Materials (discovered 2 exits: Fac / Sto) History --------- Turn | Location | Event 7 | -11/Scrapyard | Discovered new exit (range 15) 90 | -11/Scrapyard | Entered Materials 306 | -10/Materials | Build established: Mutant 1273 | -10/Materials | Discovered new exit (range 12) 1896 | -10/Materials | Discovered new exit (range 12) 1937 | -10/Materials | Entered another Materials area 1937 | -9/Materials | Evolved 2 slots: Propulsion x1, Utility x1 2295 | -9/Materials | Identified exit to Mines 2803 | -9/Materials | Entered Mines 2979 | -9/Mines | Core integrity fell below 50% 3129 | -9/Mines | Learned 2 Materials zone layouts 3240 | -9/Mines | Learned location of Recycling (-8) 3675 | -9/Mines | Discovered new exit (range 14) 3706 | -9/Mines | Entered Materials 3706 | -8/Materials | Evolved 2 slots: Propulsion x1, Utility x1 3707 | -8/Materials | Identified exit to Factory 3826 | -8/Materials | Identified exit to Storage 4128 | -8/Materials | Met 7R-MNS 4691 | -8/Materials | Self-destructed Last Messages --------------- Purged threat record, alert level lowered. Connecting with Repair Station... >>Scan(Imp. Treads) Scanning Imp. Treads... Ready to Repair: Imp. Treads Rating: 2 Time: 16 ALERT: Suspicious activity at Repair Station M002. Dispatching Investigation squad. O-16 Technician: "IFF HANDSHAKE FAILED. SECURING TERMINAL." ALERT: Hostiles spotted, dispatching reinforcements to Terminal M003. G-47 Trooper Imp. Heat Sink blasted off. Imp. Treads destroyed. Critical hit (Burn: +26). G-47 Trooper destroyed. R-06 Scavenger collects Imp. Heat Sink. Critical hit (Burn: +25). EM Shotgun destroyed. G-47 Trooper knocked back. Map ----- +----------------------------------------------------+ | ???????????????????????# [=%[* ==! #? | | ???????????????????????# #########"|!!# #? | | ???????????????????????## *### """" = #?#####? | | ????????????????????????# #?# ""S"" = #??????? | | ????????????????????????# %#?# "" "" """ #??????? | | ????????????????????????# ==#?# """ #??????? | | ??????>?????????????????# *%#?# """ #??????? | | ????????????????????????#=!%#?# #??????? | | ???????????????????????##% ## #??????? | | ???????????????????????# ! %=############## #? | | ???????????????????????# % #? | | ???????????????????????+ #? | | ???????????????????????# #? | | ???????????????????????# ############## #? | | ???????????????????????##### #??????######## ### | | ???????????????????????????# #??????# # # | | ???????????????????????????#%#??????# # # " | | ???????????????????????????# #??????# + # " | | ???????????????????????????#%#??????# # # " | | ???????????????????######### #??????# # + | | ???????????????????#! ##%#??????# # # " | | ???????????????????# """ ## #??????########## # " | | ???????????????????# ""R" ## #???????????????# # " | | ???????????????????# ""%" ## ##??????????????# # | | ???????????????????# g ##%"#??#######?????# ### | | ???????????????????#! g @#[ ##### #?????# #?? | | ???????????????????###/#g## %% ! #?????# #?? | | ?????????????????????# T #?????# #?? | | ?????????????????????# #### #?????# ### | | ????########??######## #######+### #?????# | | ????# ! #??# # ## ## ##???###/##+ | | ????# #### # ## """## #????# | | ????# [ + + # ## """## #????# """ | | ????# [ # ## # ## """## #????# """ | | ????# # ## # ## ## #??????????? | | ????# # ## + ## """## #??????????? | | ????####+### ######### ## """#? #??????????? | | ???????# ?? ??????? ## """?? #??????????? | | ???????# ??#+#???????# ## ??? #??????????? | | ???????#?????????????# #########??? #??????????? | | ?????????????????????# #??????????? #??????????? | | ?????????????????????# #??????????? #??????????? | | ?????????????????????# #??????????? ???????????? | | ?????????????????????# #?????????????????????????? | | ?????????????????????? ??????????????????????????? | | ?????????????????????? ??????????????????????????? | | ?????????????????????? ??????????????????????????? | | ?????????????????????? ??????????????????????????? | | ?????????????????????? ??????????????????????????? | | ?????????????????????? ??????????????????????????? | +----------------------------------------------------+ Best States ------------- Heat Dissipation 31 Energy Generation 14 Energy Capacity 280 Matter Stores 300 Matter Capacity 300 Sight Range 16 Terrain Scan Density 10 Armor Coverage 225 Utility Shielding 33 Weapon Shielding 33 Evasion (%) 40 Recoil Reduction 4 Offensive Hacking 10 Item Schematics ----------------- Reflective Plating | -8/Materials | Extracted Imp. Ion Engine | -8/Materials | Extracted Arm. Treads | -8/Materials | Extracted Sml. Matter Pod | -8/Materials | Extracted Huge Storage Unit | -8/Materials | Extracted Airjet | -8/Materials | Extracted Structural Scanner | -8/Materials | Extracted Robot Schematics ------------------ None Fabricated ------------ Nothing Alien Tech Used ----------------- None Achievements -------------- None Challenges ------------ None Game ------ Seed RagnarokThermicMegatreads Manual? 0 Play Time 00:32:25 Cumulative 26.6 hours Start 2024.09.01 @ 05:06:00 End 2024.09.01 @ 07:29:20 Sessions 1 Manual Loads 0 Difficulty Rogue Special Mode None Game No. 40 Rogue 40 Adventurer 0 Explorer 0 Win Type - Total 0 Types 0/0/0/0/0/0/0/0/0 Lore% 14 Gallery% 27 Achievement% 25 Wizard Run 0 Options --------- Layout 0 ASCII 0 Keyboard 0 Movement Numpad Keybinds 0 Fullscreen 1 Font 18/Cog Map View 76x50 Zoom Use 0% Tactical HUD 0 Map Filters NONE Filters NONE Steam 1 RUN: 7f46a804-aa02-453f-9b42-a32f4d909e2a